bitfinex/quotes_BTCUSD_20251209
["timestamp","ask_amount","ask_price","bid_price","bid_amount"]
[1765294056191,0.0936407,90926.0,90924.0,0.21996324]
[1765294056399,0.01752,90933.0,90931.0,0.21994494]
[1765294056691,0.01752,90933.0,90931.0,0.21994637]
[1765294057526,0.00802823,90933.0,90931.0,0.21994637]
[1765294057938,0.00802823,90933.0,90932.0,0.02207794]
[1765294058918,0.01002823,90933.0,90931.0,0.22194637]
[1765294059118,0.00902823,90933.0,90931.0,0.21994637]
[1765294059535,0.00902823,90933.0,90932.0,0.22394457]
[1765294059751,0.00802823,90933.0,90932.0,0.21994457]
[1765294060262,0.00902823,90933.0,90932.0,0.21994457]
[1765294061236,0.00802823,90933.0,90932.0,0.21994457]
[1765294061663,0.00902823,90933.0,90932.0,0.24502251]
[1765294062738,0.001,90933.0,90932.0,0.24502251]
[1765294063173,0.001,90933.0,90932.0,0.003]
[1765294063543,0.04050998,90933.0,90932.0,0.003]
[1765294063754,0.01852,90933.0,90932.0,0.003]
[1765294064357,0.01099722,90932.0,90928.0,0.23095071]
[1765294064522,0.01752,90933.0,90932.0,0.003]
[1765294064723,0.01852,90933.0,90932.0,0.22294457]
[1765294064982,0.01752,90933.0,90932.0,0.21994457]
[1765294065168,0.01752,90933.0,90932.0,0.22094457]
[1765294065326,0.01752,90933.0,90932.0,0.001]
[1765294065531,0.01752,90933.0,90931.0,0.21994612]
[1765294065532,0.01752,90933.0,90930.0,0.2309468]
[1765294065789,0.01752,90933.0,90932.0,0.21994457]
[1765294065980,0.02052,90933.0,90932.0,0.21994457]
[1765294066174,0.01852,90933.0,90931.0,0.21994699]
[1765294066742,0.01852,90933.0,90932.0,0.21994457]
[1765294067114,0.24846047,90933.0,90930.0,0.2309468]
[1765294067345,0.01099783,90927.0,90923.0,0.21996396]
[1765294067544,0.2309546,90927.0,90924.0,0.23096002]
[1765294067739,0.21996876,90922.0,90921.0,0.00011457]
[1765294068919,0.21996876,90922.0,90921.0,0.00111457]
[1765294069320,0.21996876,90922.0,90921.0,0.00211457]
[1765294070125,0.30169795,90926.0,90923.0,0.01099831]
[1765294070377,0.21996876,90922.0,90921.0,0.00011457]
[1765294070527,0.21996876,90922.0,90921.0,0.00111457]
[1765294070725,0.21996876,90922.0,90921.0,0.00211457]
[1765294070927,0.21996876,90922.0,90921.0,0.00011457]
[1765294071946,0.21996876,90922.0,90921.0,0.00111457]
[1765294072154,0.21996876,90922.0,90921.0,0.00211457]
[1765294072387,0.01099807,90925.0,90922.0,0.01099843]
[1765294072640,0.51065687,90927.0,90924.0,0.01099819]
[1765294072841,0.10463804,90931.0,90924.0,0.01099819]
[1765294072842,0.0936407,90931.0,90929.0,0.21995183]
[1765294073045,0.21993239,90938.0,90927.0,0.21995666]
[1765294073046,0.01099614,90941.0,90936.0,0.21993489]
[1765294073274,0.01099432,90956.0,90951.0,0.01099493]
[1765294073472,0.21988442,90957.0,90954.0,0.21989137]
[1765294073676,0.2308861,90954.0,90951.0,0.01099493]
[1765294074011,0.21989084,90955.0,90951.0,0.21989768]
[1765294074152,0.21989139,90954.0,90952.0,0.01099481]
[1765294074351,0.01699456,90954.0,90951.0,0.001]
[1765294074599,0.2198962,90952.0,90951.0,0.001]
[1765294074978,0.21989398,90953.0,90951.0,0.22089862]
[1765294075173,0.23689075,90954.0,90951.0,0.22089862]
[1765294075174,0.01699456,90954.0,90951.0,0.01199493]
[1765294075416,0.01999456,90954.0,90951.0,0.23189219]
[1765294075600,0.01999456,90954.0,90952.0,0.21989585]
[1765294075774,0.23988626,90954.0,90951.0,0.23189219]
[1765294075970,0.009,90954.0,90952.0,0.21989564]
[1765294076317,0.003,90954.0,90953.0,0.21989379]
[1765294076838,0.003,90954.0,90953.0,0.22150666]
[1765294077041,0.00141257,90956.0,90955.0,0.21988895]
[1765294077690,0.00141257,90956.0,90955.0,0.24357976]
[1765294078504,0.23083976,90973.0,90955.0,0.24357976]
[1765294078505,0.2907,90979.0,90974.0,0.21984303]
[1765294078703,9.312e-05,90975.0,90974.0,0.21984303]
[1765294078904,9.312e-05,90975.0,90974.0,0.2214559]
[1765294079317,9.312e-05,90975.0,90974.0,0.24353384]
[1765294080178,9.312e-05,90975.0,90974.0,0.24453384]
[1765294080385,9.312e-05,90975.0,90974.0,0.24353384]
[1765294080588,9.312e-05,90975.0,90974.0,0.24553384]
[1765294080745,9.312e-05,90975.0,90974.0,0.2234559]
[1765294080942,9.312e-05,90975.0,90974.0,0.2214559]
[1765294081146,9.312e-05,90975.0,90974.0,0.2254559]
[1765294081697,0.23082325,90979.0,90974.0,0.00361287]
[1765294081698,0.21983819,90976.0,90974.0,0.00361287]
[1765294081915,0.21983819,90976.0,90974.0,0.002]
[1765294082121,0.21983819,90976.0,90974.0,0.003]
[1765294082326,0.21983819,90976.0,90974.0,0.001]
[1765294082752,0.02198998,90975.0,90974.0,0.002]
[1765294082950,0.11563068,90975.0,90974.0,0.002]
[1765294083150,0.01099263,90970.0,90966.0,0.21986091]
[1765294083379,0.01099275,90969.0,90965.0,0.01099323]
[1765294083582,0.01099227,90973.0,90969.0,0.21985464]
[1765294083757,0.0936407,90975.0,90972.0,0.23083938]
[1765294084058,0.0936407,90975.0,90965.0,9.312e-05]
[1765294084059,0.01099251,90971.0,90965.0,9.312e-05]
[1765294084219,0.01099263,90970.0,90966.0,0.001]
[1765294084425,0.01099263,90970.0,90966.0,0.01199311]
[1765294084821,0.23084827,90969.0,90965.0,0.21995644]
[1765294085012,0.01099287,90968.0,90965.0,0.21995644]
[1765294085207,0.0109919,90976.0,90972.0,0.01099239]
[1765294085410,0.01099239,90972.0,90969.0,0.01099275]
[1765294085632,0.01099239,90972.0,90968.0,0.01099287]
[1765294085858,0.23083827,90973.0,90969.0,0.01099275]
[1765294086028,0.01099215,90974.0,90968.0,0.01099287]
[1765294086227,0.01099215,90974.0,90965.0,9.312e-05]
[1765294086228,0.01099287,90968.0,90965.0,0.00109312]
[1765294086434,0.23085152,90968.0,90965.0,9.312e-05]
[1765294086661,0.23084926,90969.0,90966.0,0.001]
[1765294086817,0.0936407,90975.0,90967.0,0.01099299]
[1765294086818,0.001,90972.0,90967.0,0.01099299]
[1765294087017,0.10463273,90975.0,90967.0,0.01099299]
[1765294087018,0.01099227,90973.0,90969.0,0.01099275]
[1765294087215,0.01099227,90973.0,90970.0,0.21985233]
[1765294087507,0.01099227,90973.0,90970.0,0.21985269]
[1765294088065,0.01099215,90974.0,90971.0,0.23084279]
[1765294088066,0.07351514,90974.0,90971.0,0.23084279]
[1765294088295,0.01099275,90969.0,90965.0,0.23194999]
[1765294088476,0.23084916,90969.0,90966.0,0.2308545]
[1765294088670,0.23084916,90969.0,90966.0,0.01099311]
[1765294088893,0.01099263,90970.0,90967.0,0.23085283]
[1765294089091,0.001,90972.0,90971.0,0.21985028]
[1765294089292,0.0936407,90975.0,90974.0,0.21984303]
[1765294089832,0.0936407,90975.0,90971.0,0.23245447]
[1765294090042,0.31348175,90975.0,90971.0,0.23245447]
[1765294090254,0.0936407,90975.0,90974.0,0.21984303]
[1765294090591,0.0936407,90975.0,90974.0,0.22184303]
[1765294091004,0.0936407,90975.0,90974.0,0.22084303]
[1765294091834,0.0936407,90975.0,90974.0,0.21984303]
[1765294092196,0.0956407,90975.0,90974.0,0.21984303]
[1765294092433,0.0936407,90975.0,90974.0,0.21984303]
[1765294092867,0.0956407,90975.0,90974.0,0.21984303]
[1765294093068,0.002,90975.0,90974.0,0.24353384]
[1765294093601,0.0004,90990.0,90989.0,0.21980678]
[1765294093814,0.0004,90990.0,90989.0,0.24188472]
[1765294093940,0.0004,90990.0,90989.0,0.21980678]
[1765294094148,0.00081287,90990.0,90989.0,0.21980678]
[1765294094741,0.00081287,90990.0,90989.0,0.22141965]
[1765294095784,0.00081287,90990.0,90989.0,0.00161287]
[1765294095986,0.00181287,90990.0,90989.0,0.22141965]
[1765294096473,0.00081287,90990.0,90989.0,0.22141965]
[1765294096660,0.00081287,90990.0,90989.0,0.001]
[1765294096865,0.28314023,90990.0,90989.0,0.002]
[1765294097250,0.59586391,90990.0,90989.0,0.002]
[1765294097487,0.59586391,90990.0,90989.0,0.001]
[1765294098031,0.21986236,90966.0,90962.0,0.0109936]
[1765294098239,0.21986236,90966.0,90949.0,0.2199024]
[1765294098240,0.06252299,90970.0,90968.0,0.23085022]
[1765294098439,0.21984747,90973.0,90968.0,0.01099287]
[1765294098643,0.06252299,90972.0,90970.0,0.21985071]
[1765294098999,0.63221696,90975.0,90969.0,0.21985368]
[1765294099000,0.47489884,90975.0,90974.0,0.21984303]
[1765294099300,0.06252299,90975.0,90974.0,0.21984303]
[1765294099714,0.06252299,90983.0,90982.0,0.2198237]
[1765294100415,0.00023594,90984.0,90982.0,0.22143657]
[1765294100630,0.00023594,90984.0,90983.0,0.02207794]
[1765294100808,0.00023594,90984.0,90983.0,0.02369081]
[1765294102564,0.00123594,90984.0,90983.0,0.02669081]
[1765294102762,0.00023594,90984.0,90983.0,0.02369081]
[1765294102942,0.00023594,90984.0,90983.0,0.00161287]
[1765294103146,0.00023594,90984.0,90983.0,0.00661287]
[1765294103298,0.00023594,90984.0,90983.0,0.00361287]
[1765294103503,0.00023594,90984.0,90983.0,0.00161287]
[1765294103704,0.00123594,90984.0,90983.0,0.00461287]
[1765294103908,0.00123594,90984.0,90983.0,0.02669081]
[1765294104733,0.00023594,90984.0,90983.0,0.02569081]
[1765294105111,0.00023594,90984.0,90983.0,0.02769081]
[1765294105312,0.00023594,90984.0,90983.0,0.02569081]
[1765294105899,0.00123594,90984.0,90983.0,0.02869081]
[1765294106106,0.00023594,90984.0,90983.0,0.02369081]
[1765294106530,0.00123594,90984.0,90983.0,0.24851209]
[1765294106735,0.00023594,90984.0,90983.0,0.24551209]
[1765294107708,0.00023594,90984.0,90983.0,0.24351209]
[1765294108257,0.00023594,90984.0,90983.0,0.22443415]
[1765294108588,0.00123594,90984.0,90983.0,0.22443415]
[1765294108862,0.00023594,90984.0,90983.0,0.22143415]
[1765294109038,0.00023594,90984.0,90983.0,0.22343415]
[1765294109237,0.00123594,90984.0,90983.0,0.22743415]
[1765294109536,0.28357779,90984.0,90983.0,0.004]
[1765294109700,0.28357779,90984.0,90968.0,0.01099287]
[1765294109701,0.06252299,90981.0,90977.0,0.23082713]
[1765294109846,0.0936407,90978.0,90975.0,0.01099203]
[1765294110050,0.0936407,90978.0,90973.0,0.01099227]
[1765294110253,0.01099178,90977.0,90972.0,0.23083544]
[1765294110434,0.2308301,90976.0,90974.0,0.21984285]
[1765294110633,0.0109919,90976.0,90973.0,0.23083589]
[1765294111047,0.0936407,90978.0,90975.0,0.01099203]
[1765294111244,0.0936407,90978.0,90976.0,0.21983819]
[1765294111446,0.0936407,90978.0,90977.0,0.21983578]
[1765294112726,0.0946407,90978.0,90977.0,0.21983578]
[1765294113104,0.0946407,90978.0,90975.0,0.01099203]
[1765294113284,0.0946407,90978.0,90976.0,0.21983794]
[1765294113487,0.001,90978.0,90977.0,0.21983578]
[1765294113690,0.001,90978.0,90977.0,0.24352659]
[1765294114089,0.00023594,90984.0,90983.0,0.21982128]
[1765294115438,0.00023594,90984.0,90983.0,0.22082128]
[1765294116240,0.00023594,90984.0,90983.0,0.22182128]
[1765294116402,0.00023594,90984.0,90983.0,0.22343415]
[1765294119332,0.00023594,90984.0,90983.0,0.22182128]
[1765294120463,0.00023594,90984.0,90983.0,0.21982128]
[1765294120662,0.00123594,90984.0,90983.0,0.21982128]
[1765294121040,0.00023594,90984.0,90983.0,0.21982128]
[1765294121243,0.00223594,90984.0,90983.0,0.21982128]
[1765294121657,0.00023594,90984.0,90983.0,0.21982128]
[1765294121860,0.00123594,90984.0,90983.0,0.21982128]
[1765294122269,0.00023594,90984.0,90983.0,0.22082128]
[1765294122467,0.00023594,90984.0,90983.0,0.22243415]
[1765294123588,0.00023594,90984.0,90983.0,0.22143415]
[1765294123792,0.00023594,90984.0,90983.0,0.22243415]
[1765294124351,0.00023594,90984.0,90983.0,0.24451209]
[1765294124551,0.00023594,90984.0,90983.0,0.24551209]
[1765294124827,0.00023594,90984.0,90983.0,0.28440783]
[1765294125034,0.00023594,90984.0,90983.0,0.28340783]
[1765294125258,0.00023594,90984.0,90983.0,0.24451209]
[1765294125444,0.00023594,90984.0,90983.0,0.28340752]
[1765294125647,0.00023594,90984.0,90983.0,0.24451209]
[1765294126577,0.00023594,90984.0,90983.0,0.24351209]
[1765294126858,0.00023594,90984.0,90983.0,0.24651209]
[1765294127221,0.00123594,90984.0,90983.0,0.24951209]
[1765294127421,0.00023594,90984.0,90983.0,0.24351209]
[1765294127795,0.00023594,90984.0,90983.0,0.24851209]
[1765294127972,0.00123594,90984.0,90983.0,0.24851209]
[1765294128182,0.00123594,90984.0,90983.0,0.24651209]
[1765294128583,0.00023594,90984.0,90983.0,0.24551209]
[1765294128931,0.00123594,90984.0,90983.0,0.24951209]
[1765294129688,0.00123594,90984.0,90983.0,0.24751209]
[1765294130060,0.00023594,90984.0,90983.0,0.24651209]
[1765294130262,0.00023594,90984.0,90983.0,0.53721209]
[1765294130486,0.00123594,90984.0,90983.0,0.54121209]
[1765294130688,1e-08,90984.0,90983.0,0.54121209]
[1765294131706,0.0004,90990.0,90989.0,0.53258472]
[1765294131900,0.0004,90990.0,90989.0,0.53419759]
[1765294132887,0.0004,90990.0,90989.0,0.59244765]
[1765294133868,0.0004,91000.0,90989.0,0.59244765]
[1765294133869,0.0004,91000.0,90991.0,1.35873789]
[1765294134067,0.0004,91000.0,90999.0,0.53417344]
[1765294135280,0.00050158,91000.0,90999.0,0.53417344]
[1765294136151,0.00050158,91000.0,90999.0,0.53617344]
[1765294136349,0.0004,91030.0,91029.0,0.2197102]
[1765294136610,0.0004,91030.0,91029.0,0.24340101]
[1765294136611,0.00078494,91030.0,91029.0,0.24340101]
[1765294137135,0.00078494,91030.0,91029.0,0.22132307]
[1765294137358,0.00078494,91030.0,91029.0,0.24340101]
[1765294137562,0.00178494,91030.0,91029.0,0.24340101]
[1765294137787,0.00178494,91030.0,91029.0,0.24540101]
[1765294137993,0.00078494,91030.0,91029.0,0.24540101]
[1765294138584,0.00078494,91030.0,91029.0,0.53610101]
[1765294138912,0.0004,91040.0,91039.0,0.241764]
[1765294139128,0.0004,91040.0,91039.0,0.24337687]
[1765294139129,0.00051544,91040.0,91039.0,0.24337687]
[1765294140134,0.00051544,91040.0,91039.0,0.53507687]
[1765294140402,0.0004,91050.0,91049.0,0.24173988]
[1765294140613,0.0004,91050.0,91049.0,0.53405275]
[1765294140782,0.0004,91060.0,91059.0,0.53241575]
[1765294140969,0.0004,91080.0,91079.0,0.22958415]
[1765294141174,0.00051541,91080.0,91079.0,0.23119702]
[1765294141409,0.00051541,91080.0,91079.0,0.24871702]
[1765294141750,0.01097333,91130.0,91102.0,0.22952871]
[1765294141867,0.0936407,91131.0,91102.0,0.23114158]
[1765294142522,0.0936407,91131.0,91102.0,0.52184158]
[1765294142727,0.0936407,91131.0,91102.0,0.53392495]
[1765294143304,0.0004,91140.0,91137.0,0.01097249]
[1765294143505,0.0007848,91140.0,91137.0,0.23042107]
[1765294143715,0.0007848,91140.0,91139.0,0.00161287]
[1765294144089,0.0007848,91140.0,91139.0,0.02369081]
[1765294144420,0.0007848,91140.0,91139.0,0.45890581]
[1765294144644,1e-08,91140.0,91139.0,0.44682244]
[1765294145638,1e-08,91140.0,91139.0,0.50934543]
[1765294145998,9e-05,91150.0,91149.0,0.52175388]
[1765294146131,0.49235633,91161.0,91158.0,0.53217722]
[1765294146335,0.45952463,91164.0,91158.0,0.53217722]
[1765294146336,0.49228635,91162.0,91160.0,0.53217241]
[1765294146538,0.23812938,91162.0,91161.0,0.30230744]
[1765294146759,0.23812938,91162.0,91161.0,0.77464844]
[1765294146963,0.2414248,91162.0,91161.0,0.86901297]
[1765294147166,0.17014385,91164.0,91163.0,2.37530093]
[1765294147366,0.32587135,91165.0,91164.0,0.59468577]
[1765294147567,0.19785653,91165.0,91164.0,2.62814018]
[1765294147747,0.64996341,91173.0,91165.0,0.36321756]
[1765294147957,0.16315091,91167.0,91166.0,0.62813537]
[1765294148168,0.15008243,91170.0,91169.0,2.36321756]
[1765294148369,0.78669901,91171.0,91170.0,0.58258796]
[1765294148572,0.3104905,91180.0,91179.0,0.59464968]
[1765294148775,0.24156347,91181.0,91180.0,2.36321756]
[1765294148980,0.03291498,91326.0,91263.0,0.2412248]
[1765294149179,0.000485,91264.0,91263.0,2.51115626]
[1765294149377,0.000485,91264.0,91263.0,2.62759873]
[1765294149571,0.000485,91264.0,91263.0,2.60552079]
[1765294149814,0.000485,91264.0,91263.0,2.51115626]
[1765294150015,0.000485,91264.0,91263.0,2.52115083]
[1765294150220,0.002485,91264.0,91263.0,2.50367083]
[1765294150395,0.002485,91264.0,91263.0,2.52615083]
[1765294150599,0.000485,91264.0,91263.0,2.52115083]
[1765294151003,0.000485,91264.0,91263.0,2.52315083]
[1765294151984,0.000485,91264.0,91263.0,2.58967382]
[1765294152188,1e-08,91264.0,91263.0,2.60175719]
[1765294152383,1e-08,91264.0,91263.0,2.59575719]
[1765294152796,1e-08,91264.0,91263.0,2.59675719]
[1765294152995,1e-08,91264.0,91263.0,2.59575719]
[1765294153201,0.002996,91264.0,91263.0,2.59875719]
[1765294153447,0.002996,91264.0,91263.0,2.60366839]
[1765294153648,1e-08,91264.0,91263.0,2.59875719]
[1765294153876,0.01095002,91324.0,91263.0,2.59875719]
[1765294153877,0.01094978,91326.0,91317.0,0.01095086]
[1765294154078,0.00011542,91326.0,91319.0,1.031354]
[1765294154289,0.00011542,91326.0,91317.0,1.98212653]
[1765294154444,0.00011542,91326.0,91325.0,1.9921211]
[1765294154872,0.00011542,91326.0,91325.0,0.00999457]
[1765294155039,0.00011542,91326.0,91325.0,1.9921211]
[1765294155234,0.00011542,91326.0,91325.0,2.50343205]
[1765294155461,0.00011542,91326.0,91325.0,2.44723748]
[1765294155661,0.00011542,91326.0,91325.0,2.51975504]
[1765294156077,0.00011542,91326.0,91325.0,2.91975504]
[1765294156277,0.00011542,91326.0,91325.0,2.51975504]
[1765294156476,0.00011542,91326.0,91325.0,2.52075504]
[1765294157041,0.05,91350.0,91349.0,0.50964054]
[1765294157195,0.01713574,91350.0,91349.0,2.53178087]
[1765294157377,0.01713574,91350.0,91349.0,2.48673788]
[1765294157579,0.01713574,91350.0,91349.0,2.47465451]
[1765294158017,0.01713574,91350.0,91349.0,1.94753397]
[1765294158220,0.01713574,91350.0,91349.0,1.9375394]
[1765294158434,0.01713574,91350.0,91349.0,1.95961734]
[1765294159085,0.01713574,91350.0,91349.0,0.02369081]
[1765294159291,0.01713574,91350.0,91333.0,0.01752]
[1765294159292,0.01094738,91346.0,91333.0,0.01752]
[1765294159512,0.01094822,91339.0,91336.0,0.02207794]
[1765294159739,0.0109481,91340.0,91304.0,0.01713574]
[1765294159740,0.0109487,91335.0,91332.0,0.00999457]
[1765294159951,0.0109487,91335.0,91304.0,0.01713574]
[1765294159952,0.0109517,91310.0,91304.0,0.00161287]
[1765294160101,0.01713574,91350.0,91311.0,0.02207794]
[1765294160102,0.01095134,91313.0,91311.0,0.02207794]
[1765294160307,0.22998638,91310.0,91304.0,0.00011542]
[1765294160506,0.01095206,91307.0,91304.0,0.00011542]
[1765294160931,0.01095194,91308.0,91304.0,0.00011542]
[1765294161134,0.01095206,91307.0,91304.0,0.00011542]
[1765294161413,0.22999528,91307.0,91304.0,0.00011542]
[1765294161617,0.01095194,91308.0,91304.0,0.00011542]
[1765294161841,0.2907,91319.0,91304.0,0.00011542]
[1765294162047,0.21903645,91309.0,91304.0,0.00111542]
[1765294162388,0.01752,91328.0,91304.0,0.00111542]
[1765294162389,0.61479149,91320.0,91311.0,0.01095158]
[1765294162566,0.61479149,91320.0,91315.0,0.02207794]
[1765294162567,0.60384099,91320.0,91315.0,0.02207794]
[1765294162748,0.61479149,91320.0,91315.0,0.02207794]
[1765294162947,0.01095074,91318.0,91315.0,0.02207794]
[1765294163172,0.002,91308.0,91307.0,0.02667695]
[1765294163356,0.002,91308.0,91307.0,0.02207794]
[1765294163720,0.003,91320.0,91319.0,0.21901247]
[1765294163934,0.60384099,91330.0,91329.0,0.02207794]
[1765294164059,0.01713574,91350.0,91280.0,0.00199998]
[1765294164060,0.55897708,91338.0,91280.0,0.00199998]
[1765294164257,0.001,91308.0,91305.0,0.0109523]
[1765294164457,0.60384099,91314.0,91313.0,0.02207794]
[1765294164699,0.01095134,91313.0,91310.0,0.02207794]
[1765294164913,0.003,91320.0,91317.0,0.01095086]
[1765294165068,0.005,91320.0,91317.0,0.00999457]
[1765294165478,0.21901483,91319.0,91317.0,0.00999457]
[1765294165685,0.21901487,91318.0,91317.0,0.00999457]
[1765294165884,0.0109517,91310.0,91307.0,0.00999457]
[1765294166165,0.01095206,91307.0,91304.0,0.00693294]
[1765294166372,0.21904365,91306.0,91304.0,0.02219336]
[1765294166573,0.21904365,91306.0,91305.0,0.002]
[1765294166778,0.21904365,91306.0,91304.0,0.00011542]
[1765294166779,0.21904571,91306.0,91304.0,0.00011542]
[1765294167610,0.21904571,91306.0,91220.0,0.00099999]
[1765294167611,0.01095626,91272.0,91269.0,0.00999457]
[1765294167819,0.00011502,91272.0,91259.0,0.00999457]
[1765294167984,0.01095698,91266.0,91259.0,0.00999457]
[1765294168188,0.0109577,91260.0,91245.0,0.0109595]
[1765294168428,0.41510765,91270.0,91246.0,0.00502308]
[1765294168429,0.21916579,91256.0,91246.0,0.00502308]
[1765294168743,0.01095962,91244.0,91237.0,0.02207794]
[1765294169217,0.21921411,91235.0,91234.0,0.04930777]
[1765294169416,0.21921376,91236.0,91234.0,0.04930777]
[1765294169801,0.01095998,91241.0,91234.0,0.04930777]
[1765294169802,0.0109595,91245.0,91236.0,0.01096058]
[1765294170017,0.0109601,91240.0,91237.0,0.00409604]
[1765294170204,0.2193072,91245.0,91237.0,0.00409604]
[1765294170205,0.00011495,91245.0,91242.0,0.01095986]
[1765294170406,0.00011495,91245.0,91244.0,0.02207794]
[1765294170628,0.00011495,91245.0,91244.0,0.024249]
[1765294170829,0.00011495,91245.0,91244.0,0.02717591]
[1765294171074,0.00011495,91245.0,91244.0,0.0034851]
[1765294171296,0.00011495,91245.0,91242.0,0.01095986]
[1765294171449,0.00011495,91245.0,91229.0,0.00349065]
[1765294171450,0.001,91236.0,91229.0,0.00349065]
[1765294171647,0.001,91236.0,91194.0,0.01752]
[1765294171648,0.001,91236.0,91225.0,0.02207794]
[1765294171892,0.001,91236.0,91228.0,0.02207794]
[1765294172039,0.21917906,91250.0,91239.0,0.01096022]
[1765294172242,0.00099999,91280.0,91239.0,0.01096022]
[1765294172243,0.00111495,91245.0,91240.0,0.00348887]
[1765294172498,0.00111495,91245.0,91235.0,0.0109607]
[1765294172499,0.01207445,91245.0,91235.0,0.0109607]
[1765294172675,0.00211495,91245.0,91243.0,0.21919391]
[1765294172889,0.00111495,91245.0,91243.0,0.22080678]
[1765294173097,0.00111495,91245.0,91244.0,0.01567523]
[1765294173098,0.00211495,91245.0,91244.0,0.01567523]
[1765294173298,0.00511495,91245.0,91243.0,0.00161287]
[1765294173497,0.00511495,91245.0,91236.0,0.22598665]
[1765294173701,0.00211495,91245.0,91242.0,0.01095986]
[1765294173884,0.00211495,91245.0,91243.0,0.21919489]
[1765294174221,0.00211495,91245.0,91240.0,0.03303804]
[1765294174222,0.00211495,91245.0,91244.0,0.02207794]
[1765294174422,0.00011495,91245.0,91241.0,0.02207794]
[1765294174778,0.01107445,91245.0,91238.0,0.01096034]
[1765294174983,0.00011495,91245.0,91242.0,0.01095986]
[1765294175182,0.04930777,91244.0,91241.0,0.01095998]
[1765294175390,0.00011495,91245.0,91242.0,0.01095986]
[1765294175590,0.00311495,91245.0,91240.0,0.0109601]
[1765294175804,0.00011495,91245.0,91243.0,0.21919345]
[1765294176340,0.00111495,91245.0,91243.0,0.21919489]
[1765294176554,0.00011495,91245.0,91244.0,0.00161287]
[1765294176744,0.00011495,91245.0,91244.0,0.01742264]
[1765294176903,0.00111495,91245.0,91244.0,0.02950601]
[1765294177075,0.00011495,91245.0,91244.0,0.02950601]
[1765294177523,0.00111495,91245.0,91244.0,0.02950601]
[1765294177970,0.00211495,91245.0,91244.0,0.02950601]
[1765294178579,0.00111495,91245.0,91244.0,0.02950601]
[1765294178779,0.00011495,91245.0,91244.0,0.02950601]
[1765294178958,0.00011495,91245.0,91244.0,0.03350601]
[1765294179159,0.00011495,91245.0,91244.0,0.03150601]
[1765294179364,0.00011495,91245.0,91244.0,0.04465756]
[1765294179682,0.00011495,91245.0,91244.0,0.04765756]
[1765294180247,0.00011495,91245.0,91244.0,0.02569081]
[1765294180448,0.00011495,91245.0,91244.0,0.00161287]
[1765294180652,0.00011495,91245.0,91244.0,0.00561287]
[1765294180990,0.00011495,91245.0,91244.0,0.00861287]
[1765294181424,0.00011495,91245.0,91244.0,0.00561287]
[1765294181557,0.00011495,91245.0,91244.0,0.2468833]
[1765294181759,0.00011495,91245.0,91244.0,0.2438833]
[1765294182148,0.00011495,91245.0,91244.0,0.2448833]
[1765294182348,0.00011495,91245.0,91244.0,0.2428833]
[1765294182610,0.00111495,91245.0,91244.0,0.2428833]
[1765294183299,0.00111495,91245.0,91244.0,0.22080536]
[1765294183501,0.00111495,91245.0,91244.0,0.00161287]
[1765294183707,0.00011495,91245.0,91244.0,0.00161287]
[1765294184007,0.00011495,91245.0,91244.0,0.002]
[1765294184768,0.06263794,91245.0,91244.0,0.002]
[1765294184992,0.08466162,91245.0,91244.0,0.002]
[1765294185308,0.21922678,91230.0,91223.0,0.23020423]
[1765294185486,0.0109613,91230.0,91223.0,0.01096214]
[1765294185690,0.01096142,91229.0,91224.0,0.01096202]
[1765294185891,0.01096118,91231.0,91223.0,0.01096214]
[1765294186226,0.0109619,91225.0,91215.0,0.0109631]
[1765294186376,0.0109625,91220.0,91213.0,0.01096334]
[1765294186574,0.46179224,91225.0,91217.0,0.01096286]
[1765294186788,0.0109619,91225.0,91219.0,0.00999457]
[1765294187167,0.40959366,91230.0,91229.0,0.23018966]
[1765294187331,0.001,91230.0,91227.0,0.01096166]
[1765294187492,0.001,91230.0,91226.0,0.03303972]
[1765294187689,0.01096094,91233.0,91226.0,0.02207794]
[1765294187905,0.0109607,91235.0,91222.0,0.01096226]
[1765294188115,0.21924141,91224.0,91217.0,0.01774469]
[1765294188328,0.21924141,91224.0,91216.0,0.01096298]
[1765294188329,0.01096202,91224.0,91216.0,0.01096298]
[1765294188508,0.40959366,91226.0,91215.0,0.00678595]
[1765294188710,0.06682777,91239.0,91215.0,0.00161287]
[1765294188909,0.40959366,91230.0,91227.0,0.01096166]
[1765294189117,0.001,91233.0,91230.0,0.23018743]
[1765294189314,0.001,91233.0,91232.0,0.02207794]
[1765294189514,0.001,91233.0,91227.0,0.22084588]
[1765294189699,0.001,91233.0,91230.0,0.0109613]
[1765294189904,0.001,91233.0,91231.0,0.21922372]
[1765294190173,0.01096034,91238.0,91231.0,0.01096118]
[1765294190358,0.01752,91239.0,91233.0,0.01096094]
[1765294190515,0.40959366,91240.0,91237.0,0.01096046]
[1765294190733,0.04930777,91234.0,91233.0,0.02207794]
[1765294190933,0.04930777,91234.0,91231.0,0.01096118]
[1765294191288,0.04930777,91234.0,91233.0,0.02207794]
[1765294191507,0.26852446,91234.0,91227.0,0.01096166]
[1765294191636,0.06026859,91234.0,91229.0,0.21922704]
[1765294191838,0.06026859,91234.0,91225.0,0.0109619]
[1765294191839,0.0109613,91230.0,91225.0,0.0109619]
[1765294192040,0.06026859,91234.0,91227.0,0.01096166]
[1765294192245,0.01096094,91233.0,91231.0,0.002]
[1765294192473,0.23018052,91233.0,91231.0,0.002]
[1765294192686,0.01096142,91229.0,91219.0,0.01096262]
[1765294192872,0.0109619,91225.0,91220.0,0.23021217]
[1765294193052,0.01096178,91226.0,91220.0,0.23021217]
[1765294193270,0.01096202,91224.0,91219.0,0.23021485]
[1765294193477,0.0109619,91225.0,91220.0,0.23021099]
[1765294193678,0.01096118,91231.0,91219.0,0.01096262]
[1765294193886,0.01096202,91224.0,91198.0,0.33056388]
[1765294194092,0.01096202,91224.0,91198.0,0.00161287]
[1765294194093,0.04930777,91220.0,91198.0,0.00161287]
[1765294194264,0.04930777,91220.0,91199.0,0.00569121]
[1765294194480,0.01096262,91219.0,91210.0,0.01096371]
[1765294194681,0.01096286,91217.0,91213.0,0.01096334]
[1765294194881,0.01096286,91217.0,91210.0,0.01096371]
[1765294195080,0.04930777,91220.0,91212.0,0.01096346]
[1765294195423,0.04930777,91220.0,91216.0,0.01096298]
[1765294195625,0.01096286,91217.0,91212.0,0.01096346]
[1765294195773,0.00011491,91217.0,91214.0,0.23022753]
[1765294196612,0.00011491,91217.0,91211.0,0.01096358]
[1765294196613,0.23033533,91217.0,91213.0,0.01096334]
[1765294196787,0.00011491,91217.0,91216.0,0.02207794]
[1765294197006,0.00011491,91217.0,91216.0,0.02821502]
[1765294197189,0.00011491,91217.0,91216.0,0.06842508]
[1765294197415,1e-08,91217.0,91216.0,0.28892578]
[1765294197627,1e-08,91217.0,91216.0,1.07578569]
[1765294197897,1e-08,91217.0,91216.0,1.13830868]
[1765294198323,1e-08,91217.0,91216.0,1.18761645]
[1765294198955,1e-08,91217.0,91216.0,1.01343945]
[1765294199151,1e-08,91217.0,91216.0,0.73070546]
[1765294199351,1e-08,91217.0,91216.0,0.49123546]